fUST/lending_fUST_20250602
["ID","MTS","AMOUNT","RATE_DAILY","PERIOD"]
[363690781,1748817034054,-430.0,0.00016438,2]
[363690782,1748817034064,-430.0,0.00016438,2]
[363690783,1748817034074,-430.0,0.00016438,2]
[363690784,1748817034085,-430.0,0.00016438,2]
[363690785,1748817034095,-430.0,0.00016438,2]
[363690786,1748817034105,-430.0,0.00016438,2]
[363690787,1748817034115,-457.02,0.00016438,2]
[363690788,1748817034127,-430.0,0.00016438,2]
[363690789,1748817034137,-430.0,0.00016438,2]
[363690790,1748817034147,-452.05,0.00016438,2]
[363690791,1748817034158,-430.0,0.00016438,2]
[363690792,1748817034169,-430.0,0.00016438,2]
[363690793,1748817034179,-430.0,0.00016438,2]
[363690794,1748817034189,-500.0,0.00016438,2]
[363690795,1748817034199,-430.0,0.00016712,2]
[363690796,1748817034382,-430.0,0.00016712,2]
[363690797,1748817034392,-446.04,0.00016712,2]
[363690798,1748817034402,-430.0,0.00016712,2]
[363690799,1748817034411,-242.44,0.00016712,2]
[363690800,1748817034421,-430.0,0.00016712,2]
[363690801,1748817034431,-430.0,0.00016712,2]
[363690802,1748817034440,-430.0,0.00016712,2]
[363690803,1748817034449,-430.0,0.00016712,2]
[363690804,1748817034459,-430.0,0.00016712,2]
[363690805,1748817034468,-430.0,0.00016712,2]
[363690806,1748817034478,-430.0,0.00016712,2]
[363690807,1748817034488,-430.0,0.00016712,2]
[363690808,1748817034498,-430.0,0.00016712,2]
[363690809,1748817034508,-430.0,0.00016712,2]
[363690810,1748817034517,-430.0,0.00016712,2]
[363690811,1748817034527,-430.0,0.00016712,2]
[363690812,1748817034537,-430.0,0.00016712,2]
[363690813,1748817034547,-430.0,0.00016712,2]
[363690814,1748817034557,-900.09891889,0.000169,2]
[363690815,1748817034566,-500.0,0.0001695,2]
[363690816,1748817034576,-1177.97,0.00016984,2]
[363690817,1748817034585,-241.08,0.00016986,2]
[363690818,1748817034595,-430.0,0.00016986,2]
[363690819,1748817034605,-492.3,0.00016986,2]
[363690820,1748817034614,-561.07,0.00016986,2]
[363690821,1748817034623,-430.0,0.00016986,2]
[363690822,1748817034632,-430.0,0.00016986,2]
[363690823,1748817034642,-430.0,0.00016986,2]
[363690824,1748817034652,-430.0,0.00016986,2]
[363690825,1748817034662,-430.0,0.00016986,2]
[363690826,1748817034672,-430.0,0.00016986,2]
[363690827,1748817034681,-430.0,0.00016986,2]
[363690828,1748817034691,-430.0,0.00016986,2]
[363690829,1748817034701,-430.0,0.00016986,2]
[363690830,1748817034711,-430.0,0.00016986,2]
[363690831,1748817034720,-347.03,0.00016986,2]
[363690832,1748817034731,-500.0,0.0001706,2]
[363690833,1748817034741,-900.09891871,0.00017141,2]
[363690834,1748817034751,-500.0,0.00017259,2]
[363690835,1748817034760,-430.0,0.0001726,2]
[363690836,1748817034770,-430.0,0.0001726,2]
[363690837,1748817034779,-409.61171324,0.0001726,2]
[363690838,1748817034789,-430.0,0.0001726,2]
[363690839,1748817034798,-283.43594527,0.0001726,2]
[363690840,1748817034808,-430.0,0.0001726,2]
[363690841,1748817034817,-430.0,0.0001726,2]
[363690842,1748817034827,-430.0,0.0001726,2]
[363690843,1748817034836,-430.0,0.0001726,2]
[363690844,1748817034846,-430.0,0.0001726,2]
[363690845,1748817034856,-430.0,0.0001726,2]
[363690846,1748817034865,-900.09891871,0.00017383,2]
[363690847,1748817034875,-500.0,0.00017498,2]
[363690848,1748817034884,-430.0,0.00017534,2]
[363690849,1748817034894,-430.0,0.00017534,2]
[363690850,1748817034904,-430.0,0.00017534,2]
[363690851,1748817034913,-430.0,0.00017534,2]
[363690852,1748817034924,-430.0,0.00017534,2]
[363690853,1748817034934,-430.0,0.00017534,2]
[363690854,1748817034944,-430.0,0.00017534,2]
[363690855,1748817034954,-430.0,0.00017534,2]
[363690856,1748817034964,-430.0,0.00017534,2]
[363690857,1748817034974,-900.09891871,0.00017624,2]
[363690858,1748817034984,-339.39955886,0.0001763,2]
[363690859,1748817034994,-430.0,0.00017808,2]
[363690860,1748817035003,-430.0,0.00017808,2]
[363690861,1748817035013,-430.0,0.00017808,2]
[363690862,1748817035023,-430.0,0.00017808,2]
[363690863,1748817035032,-430.0,0.00017808,2]
[363690864,1748817035042,-430.0,0.00017808,2]
[363690865,1748817035052,-430.0,0.00017808,2]
[363690866,1748817035061,-430.0,0.00017808,2]
[363690867,1748817035071,-430.0,0.00017808,2]
[363690868,1748817035080,-1177.97,0.00017865,2]
[363690869,1748817035090,-900.09891871,0.00017866,2]
[363690870,1748817035100,-1000.0,0.00017928,7]
[363690871,1748817035110,-1000.0,0.00017928,7]
[363690872,1748817035119,-1000.0,0.00017928,2]
[363690873,1748817035132,-582.56930521,0.00017928,7]
[363690874,1748817035174,-351.63552655,0.00017928,7]
[363690875,1748817035798,-65.79516824,0.00017928,7]
[363690876,1748817035822,-458.20483176,0.00017928,2]
[363690895,1748817038339,-541.79516824,0.00017928,2]
[363690897,1748817038349,-1000.0,0.00017928,7]
[363690899,1748817038358,-1000.0,0.00017928,2]
[363690901,1748817038368,-1000.0,0.00017928,7]
[363690903,1748817038377,-1000.0,0.00017928,2]
[363690905,1748817038386,-1000.0,0.00017928,7]
[363690907,1748817038396,-1000.0,0.00017928,2]
[363690909,1748817038405,-1000.0,0.00017928,7]
[363690911,1748817038415,-1000.0,0.00017928,2]
[363690913,1748817038424,-420.0,0.00017961,2]
[363690914,1748817038433,-420.0,0.00017961,2]
[363690916,1748817038442,-420.0,0.00017961,2]
[363690919,1748817038453,-1680.0,0.0001805,2]
[363690921,1748817038463,-500.0,0.00018081,2]
[363690923,1748817038472,-430.0,0.00018082,2]
[363690925,1748817038482,-430.0,0.00018082,2]
[363690926,1748817038491,-430.0,0.00018082,2]
[363690927,1748817038501,-430.0,0.00018082,2]
[363690928,1748817038510,-430.0,0.00018082,2]
[363690929,1748817038520,-430.0,0.00018082,2]
[363690930,1748817038530,-430.0,0.00018082,2]
[363690931,1748817038540,-430.0,0.00018082,2]
[363690932,1748817038549,-430.0,0.00018082,2]
[363690933,1748817038560,-900.09891871,0.00018107,2]
[363690934,1748817038570,-776.26,0.00018206,2]
[363690935,1748817038580,-900.09891871,0.00018348,2]
[363690936,1748817038590,-430.0,0.00018356,2]
[363690937,1748817038600,-430.0,0.00018356,2]
[363690938,1748817038610,-430.0,0.00018356,2]
[363690939,1748817038620,-430.0,0.00018356,2]
[363690940,1748817038629,-430.0,0.00018356,2]
[363690941,1748817038639,-430.0,0.00018356,2]
[363690942,1748817038649,-430.0,0.00018356,2]
[363690943,1748817038658,-430.0,0.00018356,2]
[363690944,1748817038667,-900.09891871,0.0001859,2]
[363690945,1748817038677,-160.0,0.00018609,2]
[363690946,1748817038687,-423.51412927,0.00018609,2]
[363690947,1748817038697,-229.3709046,0.00018609,2]
[363690948,1748817038707,-212.80060342,0.00018609,2]
[363690949,1748817038717,-430.0,0.0001863,2]
[363690950,1748817038727,-430.0,0.0001863,2]
[363690951,1748817038736,-430.0,0.0001863,2]
[363690952,1748817038746,-430.0,0.0001863,2]
[363690953,1748817038756,-430.0,0.0001863,2]
[363690954,1748817038765,-430.0,0.0001863,2]
[363690955,1748817038775,-430.0,0.0001863,2]
[363690956,1748817038784,-430.0,0.0001863,2]
[363690957,1748817038794,-156.37182406,0.000187,2]
[363690958,1748817038804,-176.12447253,0.00018824,2]
[363690959,1748817038813,-900.09891871,0.00018831,2]
[363690960,1748817038823,-430.0,0.00018904,2]
[363690961,1748817038833,-430.0,0.00018904,2]
[363690962,1748817038843,-430.0,0.00018904,2]
[363690963,1748817038852,-430.0,0.00018904,2]
[363690964,1748817038862,-430.0,0.00018904,2]
[363690965,1748817038872,-430.0,0.00018904,2]
[363690966,1748817038881,-430.0,0.00018904,2]
[363690967,1748817038890,-566.17384677,0.00018904,2]
[363690968,1748817038900,-900.09891871,0.00019072,2]
[363690969,1748817038910,-1552.52,0.00019073,2]
[363690970,1748817038919,-430.0,0.00019178,2]
[363690971,1748817038929,-430.0,0.00019178,2]
[363690972,1748817038939,-430.0,0.00019178,2]
[363690973,1748817038948,-430.0,0.00019178,2]
[363690974,1748817038958,-430.0,0.00019178,2]
[363690975,1748817038968,-546.76609104,0.00019178,2]
[363690976,1748817038978,-430.0,0.00019178,2]
[363690977,1748817038987,-430.0,0.00019178,2]
[363690978,1748817038997,-430.0,0.00019178,2]
[363690979,1748817039006,-430.0,0.00019178,2]
[363690980,1748817039015,-430.0,0.00019178,2]
[363690981,1748817039025,-430.0,0.00019178,2]
[363690982,1748817039035,-173.899305,0.00019178,2]
[363690983,1748817039044,-900.09891871,0.00019314,2]
[363690984,1748817039054,-430.0,0.00019452,2]
[363690985,1748817039063,-430.0,0.00019452,2]
[363690986,1748817039073,-430.0,0.00019452,2]
[363690987,1748817039082,-430.0,0.00019452,2]
[363690988,1748817039092,-430.0,0.00019452,2]
[363690989,1748817039101,-430.0,0.00019452,2]
[363690990,1748817039111,-4465.39443153,0.000195,2]
[363690991,1748817039121,-900.09891871,0.00019555,2]
[363690992,1748817039130,-250.0,0.00019568,2]
[363690993,1748817039140,-422.083,0.00019593,2]
[363690994,1748817039149,-496.0,0.00019629,2]
[363690995,1748817039159,-587.0,0.00019629,2]
[363690996,1748817039168,-300.0,0.00019629,2]
[363690997,1748817039178,-430.0,0.00019726,2]
[363690998,1748817039188,-430.0,0.00019726,2]
[363690999,1748817039198,-430.0,0.00019726,2]
[363691000,1748817039207,-430.0,0.00019726,2]
[363691001,1748817039218,-430.0,0.00019726,2]
[363691002,1748817039227,-500.68,0.00019726,2]
[363691003,1748817039237,-900.09891871,0.00019797,2]
[363691004,1748817039246,-1177.97,0.00019824,2]
[363691005,1748817039256,-2157.0,0.00019824,2]
[363691006,1748817039266,-2328.78,0.0001994,2]
[363691007,1748817039277,-107268.58270446,0.0002,2]
[363691008,1748817039287,-5156.46160245,0.0002,2]
[363691009,1748817039297,-430.0,0.0002,2]
[363691010,1748817039306,-430.0,0.0002,2]
[363691011,1748817039317,-203.87550594,0.0002,2]
[363691012,1748817039328,-430.0,0.0002,2]
[363691013,1748817039339,-430.0,0.0002,2]
[363691014,1748817039348,-900.09891871,0.00020038,2]
[363691015,1748817039358,-500.0,0.00020067,2]
[363691016,1748817039367,-269.28684,0.00020187,2]
[363691017,1748817039377,-430.0,0.00020273,2]
[363691018,1748817039387,-457.39908283,0.00020273,2]
[363691019,1748817039396,-287.75748848,0.00020273,2]
[363691020,1748817039406,-430.0,0.00020273,2]
[363691021,1748817039415,-900.09891871,0.00020279,3]
[363691022,1748817039425,-1735.57128445,0.00020447,2]
[363691023,1748817039434,-900.09891871,0.00020521,3]
[363691024,1748817039443,-430.0,0.00020547,2]
[363691025,1748817039453,-430.0,0.00020547,2]
[363691026,1748817039573,-151.0,0.000206,3]
[363691027,1748817039589,-403.96,0.000206,2]
[363691028,1748817039600,-2117.57,0.000206,2]
[363691029,1748817039610,-900.09891871,0.00020762,3]
[363691030,1748817039621,-3105.04,0.00020807,2]
[363691031,1748817039633,-430.0,0.00020821,2]
[363691032,1748817039643,-430.0,0.00020821,2]
[363691033,1748817039653,-226.34,0.000209,2]
[363691034,1748817039663,-177.51,0.00020949,3]
[363691035,1748817039673,-151.0,0.00021,4]
[363691036,1748817039682,-900.09891871,0.00021003,4]
[363691037,1748817039693,-532.57,0.00021089,3]
[363691038,1748817039702,-430.0,0.00021095,2]
[363691039,1748817039712,-430.0,0.00021095,2]
[363691040,1748817039722,-500.0,0.00021163,2]
[363691041,1748817039732,-900.09891871,0.00021245,4]
[363691042,1748817039743,-1735.57128441,0.0002126,2]
[363691043,1748817039753,-176.12447253,0.0002131,2]
[363691044,1748817039763,-445.87978705,0.00021369,2]
[363691045,1748817039773,-430.0,0.00021369,2]
[363691046,1748817039782,-5000.0,0.00021395,2]
[363691047,1748817039792,-151.0,0.000214,3]
[363691048,1748817039802,-823.0,0.00021451,2]
[363691049,1748817039811,-900.09891871,0.00021486,5]
[363691050,1748817039820,-430.0,0.00021643,2]
[363691051,1748817039829,-3881.3,0.00021674,2]
[363691052,1748817039838,-900.09891871,0.00021728,5]
[363691053,1748817039848,-151.0,0.000218,4]
[363691054,1748817039857,-403.96,0.000218,2]
[363691055,1748817039866,-2117.57,0.000218,2]
[363691056,1748817039876,-5000.0,0.00021874,2]
[363691057,1748817039885,-318.60725814,0.00021917,2]
[363691058,1748817039895,-150.0,0.00021918,2]
[363691059,1748817039904,-900.09891871,0.00021969,6]
[363691060,1748817039914,-12781.93875942,0.0002199,2]
[363691061,1748817039924,-170.0,0.00022,2]
[363691062,1748817039934,-170.0,0.00022,2]
[363691063,1748817039945,-170.0,0.00022,2]
[363691065,1748817039954,-1735.57128441,0.00022074,2]
[363691067,1748817039964,-151.0,0.000222,8]
[363691069,1748817039973,-900.09891871,0.0002221,6]
[363691070,1748817039983,-154.67873888,0.00022243,2]
[363691071,1748817039993,-272.80097017,0.00022243,2]
[363691072,1748817040002,-207.4,0.00022243,2]
[363691073,1748817040012,-800.0,0.00022243,2]
[363691074,1748817040021,-300.0,0.00022243,2]
[363691075,1748817040031,-800.0,0.00022243,2]
[363691076,1748817040042,-300.0,0.00022243,2]
[363691077,1748817040052,-800.0,0.00022243,2]
[363691078,1748817040062,-300.0,0.00022243,2]
[363691079,1748817040072,-800.0,0.00022243,2]
[363691080,1748817040082,-300.0,0.00022243,2]
[363691081,1748817040091,-300.0,0.00022243,2]
[363691082,1748817040101,-800.0,0.00022243,2]
[363691083,1748817040111,-300.0,0.00022243,2]
[363691084,1748817040120,-800.0,0.00022243,2]
[363691085,1748817040134,-300.0,0.00022243,2]
[363691086,1748817040143,-800.0,0.00022243,2]
[363691087,1748817040154,-300.0,0.00022243,2]
[363691088,1748817040165,-800.0,0.00022243,2]
[363691089,1748817040175,-300.0,0.00022243,2]
[363691090,1748817040186,-800.0,0.00022243,2]
[363691091,1748817040196,-300.0,0.00022243,2]
[363691092,1748817040208,-5000.0,0.00022243,2]
[363691093,1748817040218,-800.0,0.00022243,2]
[363691094,1748817040229,-300.0,0.00022243,2]
[363691095,1748817040238,-800.0,0.00022243,2]
[363691096,1748817040248,-300.0,0.00022243,2]
[363691097,1748817040257,-800.0,0.00022243,2]
[363691098,1748817040266,-300.0,0.00022243,2]
[363691100,1748817040276,-800.0,0.00022243,2]
[363691102,1748817040285,-300.0,0.00022243,2]
[363691104,1748817040294,-800.0,0.00022243,2]
[363691106,1748817040304,-800.0,0.00022243,2]
[363691107,1748817040313,-300.0,0.00022243,2]
[363691108,1748817040322,-500.0,0.00022259,2]
[363691109,1748817040332,-226.34,0.000223,7]
[363691110,1748817040342,-355.02,0.00022319,3]
[363691111,1748817040352,-182.44744279,0.00022384,2]
[363691112,1748817040361,-254.62797019,0.000224,30]
[363691113,1748817040371,-4657.56,0.0002244,2]
[363691114,1748817040380,-900.09891871,0.00022452,7]
[363691115,1748817040390,-7498.7979491,0.00022491,2]
[363691116,1748817040399,-5000.0,0.00022491,2]
[363691117,1748817040409,-5000.0,0.00022491,2]
[363691118,1748817040419,-5000.0,0.00022491,2]
[363691119,1748817040429,-5000.0,0.00022491,2]
[363691120,1748817040439,-6898.36184518,0.000225,2]
[363691122,1748817040448,-500.0,0.00022533,2]
[363691125,1748817040459,-499.08564506,0.00022533,2]
[363691127,1748817040468,-188.77363041,0.00022533,2]
[363691129,1748817040478,-163.73485021,0.00022533,2]
[363691131,1748817040487,-500.0,0.00022533,2]
[363691133,1748817040496,-1177.97,0.0002254,2]
[363691135,1748817040505,-657.40679757,0.00022557,2]
[363691137,1748817040515,-151.0,0.000226,10]
[363691139,1748817040524,-151.0,0.000226,9]
[363691141,1748817040534,-182.44744279,0.00022685,2]
[363691143,1748817040544,-191.47486967,0.00022685,2]
[363691145,1748817040554,-900.09891871,0.00022693,7]
[363691147,1748817040564,-5000.0,0.00022791,2]
[363691149,1748817040574,-403.96,0.000228,7]
[363691151,1748817040584,-2117.57,0.000228,2]
[363691153,1748817040593,-1735.57128441,0.00022887,2]
[363691155,1748817040603,-751.56940287,0.00022905,2]
[363691157,1748817040613,-2227.0,0.00022914,2]
[363691159,1748817040622,-708.0,0.00022914,2]
[363691162,1748817040632,-405.0,0.00022914,2]
[363691164,1748817040642,-962.0,0.00022914,2]
[363691166,1748817040652,-900.09891871,0.00022934,8]
[363691168,1748817040661,-499.99999901,0.0002298,2]
[363691170,1748817040671,-182.44744279,0.00022986,2]
[363691172,1748817040681,-191.47486967,0.00022986,2]
[363691174,1748817040690,-151.0,0.00023,7]
[363691177,1748817040699,-2233.70799925,0.00023,7]
[363691180,1748817040709,-94869.2769871,0.00023,20]
[363691183,1748817040719,-340.979517,0.00023154,2]
[363691186,1748817040728,-900.09891871,0.00023176,8]
[363691189,1748817040738,-182.44744279,0.00023288,2]
[363691192,1748817040748,-151.0,0.000233,10]
[363691194,1748817040760,-459.94199928,0.000233,15]
[363691196,1748817040769,-5433.81,0.00023304,2]
[363691198,1748817040778,-2020.859206,0.00023323,3]
[363691200,1748817040787,-175.527556,0.00023323,7]
[363691202,1748817040797,-5000.0,0.00023339,2]
[363691204,1748817040806,-500.0,0.00023355,2]
[363691206,1748817040815,-151.0,0.000234,8]
[363691208,1748817040824,-500.87972083,0.000234,9]
[363691210,1748817040834,-900.09891871,0.00023417,9]
[363691212,1748817040843,-1177.97,0.00023442,2]
[363691214,1748817040852,-1152.0,0.00023443,2]
[363691216,1748817040861,-500.0,0.0002345,9]
[363691218,1748817040870,-800.0,0.00023525,2]
[363691220,1748817040880,-800.0,0.00023534,2]
[363691222,1748817040889,-469.81,0.00023552,10]
[363691224,1748817040898,-800.0,0.00023553,2]
[363691226,1748817040908,-1177.97,0.00023559,2]
[363691228,1748817040918,-159.901453,0.00023561,7]
[363691230,1748817040927,-159.901453,0.00023561,7]
[363691233,1748817040937,-2000.0,0.00023561,2]
[363691235,1748817040947,-2000.0,0.00023561,2]
[363691237,1748817040958,-2000.0,0.00023561,2]
[363691239,1748817040967,-2000.0,0.00023561,2]
[363691241,1748817040976,-2000.0,0.00023561,2]
[363691242,1748817040986,-2000.0,0.00023561,2]
[363691245,1748817040995,-659.52,0.00023561,2]
[363691247,1748817041005,-1141.43020283,0.00023561,30]
[363691249,1748817041014,-160.0,0.00023561,2]
[363691251,1748817041023,-1177.97,0.00023561,2]
[363691253,1748817041032,-1177.97,0.00023561,2]
[363691254,1748817041041,-1177.97,0.00023561,2]
[363691256,1748817041051,-1177.97,0.00023561,2]
[363691258,1748817041060,-1177.97,0.00023561,2]
[363691261,1748817041070,-2747.04128735,0.00023562,2]
[363691263,1748817041079,-39286.45456102,0.00023562,2]
[363691274,1748817041176,-10572.9056398,0.00023562,2]
[363691276,1748817041188,-365.9453179,0.00023562,2]
[363691296,1748817041364,-0.01580062,0.00023562,2]
[363691799,1748817046512,-949.11850182,0.00018627,2]
[363691801,1748817046522,-500.0,0.00018627,2]
[363691803,1748817046532,-949.11850182,0.00018627,2]
[363691805,1748817046542,-949.11850182,0.00018627,2]
[363691807,1748817046552,-949.11850182,0.00018627,2]
[363691810,1748817046562,-500.0,0.00018627,2]
[363691812,1748817046572,-949.11850182,0.00018627,2]
[363691814,1748817046582,-500.0,0.00018627,2]
[363691815,1748817046592,-949.11850182,0.00018627,2]
[363691818,1748817046603,-500.0,0.00018627,2]
[363691820,1748817046613,-949.11850182,0.00018627,2]
[363691822,1748817046624,-949.11850182,0.00018627,2]
[363691824,1748817046634,-401.31125477,0.00018627,2]
[363691826,1748817046644,-949.11850182,0.00018627,2]
[363691828,1748817046653,-949.11850182,0.00018627,2]
[363691830,1748817046663,-949.11850182,0.00018627,2]
[363691832,1748817046673,-949.11850182,0.00018627,2]
[363691834,1748817046682,-500.0,0.00019178,2]
[363691836,1748817046692,-500.0,0.00019178,2]
[363691838,1748817046701,-500.0,0.00019178,2]
[363691840,1748817046711,-500.0,0.00019178,2]
[363691842,1748817046720,-500.0,0.00019178,2]
[363691844,1748817046730,-500.0,0.00019178,2]
[363691846,1748817046739,-284.74819048,0.00019178,2]
[363691848,1748817046749,-430.09855512,0.00019178,2]
[363691850,1748817046759,-500.0,0.00019178,2]
[363691852,1748817046768,-980.36331433,0.00023562,2]
[363691957,1748817062892,-249.52869692,0.00016435,2]
[363691958,1748817063875,1598.0,0.00024658,120]
[363691959,1748817064740,-181.16,0.00016435,2]
[363691960,1748817066454,-69.31130308,0.00016435,2]
[363691961,1748817066477,-129.27789169,0.00016435,2]
[363691962,1748817068732,-303.55392084,0.00016435,2]
[363691963,1748817070909,-67.16818747,0.00016435,2]
[363691964,1748817070933,-95.05211299,0.00016435,2]
[363691967,1748817256252,259.73506,0.00013699,2]
[363691971,1748817568980,24900.0,0.00015437,2]
[363691973,1748817649682,4810.7919444,0.00015437,2]
[363691974,1748817728974,884.416712,0.00015437,2]
[363691977,1748818091972,320.614348,0.00015433,2]
[363691994,1748818232481,-2206.42418607,0.00015853,2]
[363691995,1748818232498,-1073.2,0.00015853,2]
[363691996,1748818232653,-1720.37581393,0.00015853,2]
[363691997,1748818232663,-164.90024098,0.00016327,2]
[363691998,1748818232673,-1200.0,0.00016426,2]
[363691999,1748818232684,-300.0,0.00016427,2]
[363692000,1748818232694,-300.0,0.00016427,2]
[363692001,1748818232704,-300.0,0.00016427,2]
[363692002,1748818232714,-363.05,0.00016428,3]
[363692003,1748818232725,-181.52,0.00016428,3]
[363692004,1748818232734,-544.61,0.00016428,3]
[363692005,1748818232744,-686.39,0.00016428,3]
[363692006,1748818232753,-209.26,0.00016428,3]
[363692007,1748818232763,-209.26,0.00016428,3]
[363692008,1748818232772,-300.0,0.00016432,2]
[363692009,1748818232782,-500.0,0.00016435,2]
[363692010,1748818232791,-383.81317076,0.00016435,2]
[363692011,1748818232802,-408.08347866,0.00016435,2]
[363692012,1748818232811,-500.0,0.00016435,2]
[363692013,1748818232820,-500.0,0.00016435,2]
[363692014,1748818232830,-500.0,0.00016435,2]
[363692015,1748818232839,-500.0,0.00016435,2]
[363692016,1748818232849,-500.0,0.00016435,2]
[363692017,1748818232858,-582.65372841,0.00016435,2]
[363692018,1748818232868,-500.0,0.00016435,2]
[363692019,1748818232878,-487.51852376,0.00016435,2]
[363692020,1748818232887,-500.0,0.00016435,2]
[363692021,1748818232897,-500.0,0.00016435,2]
[363692022,1748818232906,-575.76134417,0.00016435,2]
[363692023,1748818232916,-500.0,0.00016435,2]
[363692024,1748818232926,-500.0,0.00016435,2]
[363692025,1748818232935,-500.0,0.00016435,2]
[363692026,1748818232947,-500.0,0.00016435,2]
[363692027,1748818232957,-500.0,0.00016435,2]
[363692028,1748818232967,-500.0,0.00016435,2]
[363692029,1748818232977,-500.0,0.00016435,2]
[363692030,1748818232987,-500.0,0.00016435,2]
[363692031,1748818232997,-500.0,0.00016435,2]
[363692032,1748818233006,-1277.55,0.00016436,2]
[363692033,1748818233016,-1141.43020283,0.00016437,2]
[363692034,1748818233028,-160.0,0.00016437,2]
[363692035,1748818233038,-500.0,0.00016437,2]
[363692036,1748818233048,-500.0,0.00016437,2]
[363692037,1748818233058,-500.0,0.00016437,2]
[363692038,1748818233067,-500.0,0.00016437,2]
[363692039,1748818233077,-500.0,0.00016437,2]
[363692040,1748818233086,-500.0,0.00016437,2]
[363692041,1748818233096,-500.0,0.00016437,2]
[363692042,1748818233106,-418.07842055,0.00016437,2]
[363692043,1748818233116,-500.0,0.00016437,2]
[363692044,1748818233126,-500.0,0.00016437,2]
[363692045,1748818233136,-500.0,0.00016437,2]
[363692046,1748818233146,-500.0,0.00016437,2]
[363692047,1748818233155,-500.0,0.00016437,2]
[363692048,1748818233164,-500.0,0.00016437,2]
[363692049,1748818233174,-500.0,0.00016437,2]
[363692050,1748818233184,-500.0,0.00016437,2]
[363692051,1748818233193,-500.0,0.00016437,2]
[363692052,1748818233204,-1277.55,0.00016437,2]
[363692053,1748818233215,-1277.55,0.00016437,2]
[363692054,1748818233224,-1277.55,0.00016437,2]
[363692055,1748818233234,-1277.55,0.00016437,2]
[363692056,1748818233244,-1487.14302057,0.00016437,2]
[363692057,1748818233255,-1487.14302057,0.00016437,2]
[363692058,1748818233264,-1487.14302057,0.00016437,2]
[363692059,1748818233274,-1487.14302057,0.00016437,2]
[363692060,1748818233283,-1487.14302057,0.00016437,2]
[363692061,1748818233293,-1487.14302057,0.00016437,2]
[363692062,1748818233303,-1487.14302057,0.00016437,2]
[363692063,1748818233313,-1487.14302057,0.00016437,2]
[363692064,1748818233323,-1487.14302057,0.00016437,2]
[363692065,1748818233333,-1487.14302057,0.00016437,2]
[363692066,1748818233343,-1585.0148262,0.00016437,2]
[363692067,1748818233352,-1585.0148262,0.00016437,2]
[363692068,1748818233362,-1585.0148262,0.00016437,2]
[363692069,1748818233372,-1585.0148262,0.00016437,2]
[363692070,1748818233382,-1585.0148262,0.00016437,2]
[363692071,1748818233392,-1585.0148262,0.00016437,2]
[363692072,1748818233402,-155.0,0.00016437,2]
[363692073,1748818233412,-430.0,0.00016438,2]
[363692074,1748818233422,-430.0,0.00016438,2]
[363692075,1748818233432,-430.0,0.00016438,2]
[363692076,1748818233448,-430.0,0.00016438,2]
[363692077,1748818233465,-430.0,0.00016438,2]
[363692078,1748818233476,-430.0,0.00016438,2]
[363692079,1748818233487,-200.58955863,0.00016438,2]
[363692080,1748818233497,-430.0,0.00016438,2]
[363692081,1748818233508,-430.0,0.00016438,2]
[363692082,1748818233518,-360.0,0.00016438,2]
[363692083,1748818233529,-430.0,0.00016438,2]